Cogmind - Beta 16 @@@ ROGUE MODE // 2025.11.10 @ 15:54:18 Player: Maxfecteau Result: Destroyed by L-41 Fighter with Axe Performance ------------- Evolutions (3) 1500 Regions Visited (9) 1800 Robots Destroyed (0) 0 Value Destroyed (200) 200 Prototype IDs (26) 520 Alien Tech Used (0) 0 Bonus (1456) 1456 TOTAL SCORE: 5476 Bonus ------- Pacifist 928 Follower Combat Kills 28 Entered Garrisons 200 Aligned with FarCom 300 Cogmind --------- Core Integrity 0/700 Matter 68/300 Energy 76/100 System Corruption 14% Temperature Cool (0) Movement Core (50) Location -7/Garrison Parts ------- > --- POWER (1) -------- (None) > --- PROPULSION (2) --- (None) > --- UTILITY (8) ------ Advanced Terrain Scan Processor Advanced Terrain Scan Processor > --- WEAPON (2) ------- Power Maul > --- INVENTORY (5) ---- Recoil Stabilizer Improved Light Armor Plating Shield Generator Improved EM Shotgun Peak State ------------ > --- POWER ------------ (None) > --- PROPULSION ------- (None) > --- UTILITY ---------- Signal Interpreter Hacking Suite > --- WEAPON ----------- Firepult > --- INVENTORY -------- Shield Generator Improved EM Shotgun Improved EM Shotgun Improved EM Shotgun Hammer [Rating: 25] Favorites ----------- Power None Propulsion None Utility Hacking Suite Device Bomb Drone Bay Processor Signal Interpreter Hackware Hacking Suite Weapon Power Maul Energy Gun Improved EM Shotgun Energy Cannon Heavy Ion Cannon Special Weapon Enhanced Flamer Impact Weapon Power Maul Build | -11 -10 -10 -9 -9 -9 -8 -8 -7 -7 ------- Run | Yrd Mat Min Mat Min Exi Min Mat Fac Gar Slots Evolved 6 | . . . 2 . . . 2 2 . Power . | . . . . . . . . . . Propulsion . | . . . . . . . . . . Utility 6 | . . . 2 . . . 2 2 . Weapon . | . . . . . . . . . . Parts Attached 19 | . 2 . 2 2 2 . 3 7 1 Power . | . . . . . . . . . . Engine . | . . . . . . . . . . Core . | . . . . . . . . . . Reactor . | . . . . . . . . . . Propulsion . | . . . . . . . . . . Treads . | . . . . . . . . . . Leg . | . . . . . . . . . . Wheel . | . . . . . . . . . . Hover . | . . . . . . . . . . Flight . | . . . . . . . . . . Utility 9 | . 1 . 2 1 . . 2 3 . Device 4 | . . . 1 1 . . 1 1 . Storage . | . . . . . . . . . . Processor 3 | . 1 . . . . . . 2 . Hackware 2 | . . . 1 . . . 1 . . Protection . | . . . . . . . . . . Artifact . | . . . . . . . . . . Weapon 10 | . 1 . . 1 2 . 1 4 1 Energy Gun 2 | . 1 . . . . . . 1 . Energy Cannon 3 | . . . . . 1 . . 2 . Ballistic Gun . | . . . . . . . . . . Ballistic Cannon . | . . . . . . . . . . Launcher . | . . . . . . . . . . Special Weapon 1 | . . . . 1 . . . . . Impact Weapon 4 | . . . . . 1 . 1 1 1 Slashing Weapon . | . . . . . . . . . . Piercing Weapon . | . . . . . . . . . . Special Melee Weapon . | . . . . . . . . . . Unidentified Prototypes 3 | . 1 . . 1 . . . 1 . Parts Lost 3 | . . . . . . . . . 3 Power . | . . . . . . . . . . Propulsion . | . . . . . . . . . . Utility 3 | . . . . . . . . . 3 Weapon . | . . . . . . . . . . Highest Loss Streak 3 | . . . . . . . . . 3 To Critical Strikes . | . . . . . . . . . . Average Backups 4 | . 2 4 4 4 4 4 4 4 4 Power . | . . . . . . . . . . Propulsion . | . . . . . . . . . . Utility 1 | . . . . . 1 1 1 2 3 Weapon 3 | . 2 4 4 4 3 3 3 2 1 Tool/Special . | . . . . . . . . . . Unused Backups 5 | . . . 1 . . . 1 1 2 Power . | . . . . . . . . . . Propulsion . | . . . . . . . . . . Utility 1 | . . . . . . . . . 1 Weapon 4 | . . . 1 . . . 1 1 1 Tool/Special . | . . . . . . . . . . Average Slot Usage (%) 33 | . 15 28 31 33 33 33 28 40 35 Device 3 | . . . 8 8 . . . . . Processor 13 | . 3 14 11 11 11 11 9 17 19 Hackware 10 | . . . 9 11 11 11 10 15 8 Impact Weapon 4 | . . . . . 9 11 8 6 6 Peak Build Rating 25 | . 5 5 8 22 25 6 10 20 20 Average Rating 12 | . 3 5 6 16 6 6 7 16 16 On Entrance 8 | . . 5 5 7 22 6 6 10 20 Avg Prop Armor Cover (%) . | . . . . . . . . . . Naked Turns 6 | . 6 . . . . . . . . Heaviest Build 10 | . 3 3 3 10 10 2 3 3 3 Greatest Support 3 | 3 3 3 3 3 3 3 3 3 3 Greatest Overweight (x) 3 | . . . . 3 3 . . . . Average Overweight (x) . | . . . . 1 . . . . . Largest Inventory Capacity 5 | 5 5 5 5 5 5 5 5 5 5 Average Capacity 5 | 5 5 5 5 5 5 5 5 5 5 Most Carried 5 | . 4 5 5 5 5 4 5 5 5 Average Carried 4 | . 3 4 4 4 4 4 4 4 4 Final Capacity 5 | 5 5 5 5 5 5 5 5 5 5 Final Carried 5 | . 4 4 4 5 4 4 5 5 4 Class Distribution -------------------- 67% | Mutant 32% | Hacker-Mutant Dominant Class ---------------- Mutant | -10/Materials Mutant | -10/Mines Mutant | -9/Materials Mutant | -9/Mines Mutant | -9/Exiles Mutant | -8/Mines Mutant | -8/Materials Hacker-Mutant | -7/Factory Hacker-Mutant | -7/Garrison Resources | -11 -10 -10 -9 -9 -9 -8 -8 -7 -7 ----------- Run | Yrd Mat Min Mat Min Exi Min Mat Fac Gar Matter Collected 290 | 200 10 . 14 66 . . . . . Remotely . | . . . . . . . . . . Salvage Created . | . . . . . . . . . . Parts . | . . . . . . . . . . Haulers Intercepted . | . . . . . . . . . . Recyclers Shooed . | . . . . . . . . . . Parts Field Recycled . | . . . . . . . . . . Retrieved Matter . | . . . . . . . . . . Parts Self-Destructed . | . . . . . . . . . . Prevented . | . . . . . . . . . . Parts Restored . | . . . . . . . . . . Kills | -11 -10 -10 -9 -9 -9 -8 -8 -7 -7 ------- Run | Yrd Mat Min Mat Min Exi Min Mat Fac Gar Combat Hostiles Destroyed . | . . . . . . . . . . Classes Destroyed . | . . . . . . . . . . Best Kill Streak . | . . . . . . . . . . Combat Bots Only . | . . . . . . . . . . Max Kills in Single Turn . | . . . . . . . . . . Gunslinging . | . . . . . . . . . . Exploded . | . . . . . . . . . . Melee . | . . . . . . . . . . Uniques/NPCs Destroyed . | . . . . . . . . . . Combat | -11 -10 -10 -9 -9 -9 -8 -8 -7 -7 -------- Run | Yrd Mat Min Mat Min Exi Min Mat Fac Gar Hostile Shots Fired 49 | . 1 . . 13 . . . . 35 Missed 19 | . . . . 8 . . . . 11 Hits 30 | . 1 . . 5 . . . . 24 Melee 14 | . . . . . . . . . 14 Projectile 16 | . 1 . . 5 . . . . 10 Critical Strikes 5 | . . . . . . . . . 5 Damage Taken 1009 | . 12 . . 84 . . . . 913 Core 757 | . . . . 39 . . . . 718 Absorbed by Shields 43 | . . . . . . . . . 43 Core Remaining (%) 97 | 100 . 100 . . . 90 100 . . Volleys Fired . | . . . . . . . . . . Largest . | . . . . . . . . . . Hottest . | . . . . . . . . . . Shots Fired . | . . . . . . . . . . Gun . | . . . . . . . . . . Cannon . | . . . . . . . . . . Launcher . | . . . . . . . . . . Special . | . . . . . . . . . . Kinetic . | . . . . . . . . . . Thermal . | . . . . . . . . . . Explosive . | . . . . . . . . . . Electromagnetic . | . . . . . . . . . . Robot Hit Streak . | . . . . . . . . . . Robot Miss Streak . | . . . . . . . . . . Penetration Max . | . . . . . . . . . . Secondary Targets . | . . . . . . . . . . Shots Hit Robots . | . . . . . . . . . . Core Hits . | . . . . . . . . . . Critical Kills . | . . . . . . . . . . Critical Parts Destroyed . | . . . . . . . . . . Critical Strikes . | . . . . . . . . . . Melee Attacks 95 | . . . . . . . 25 15 55 Impact 95 | . . . . . . . 25 15 55 Slashing . | . . . . . . . . . . Piercing . | . . . . . . . . . . Sneak Attacks . | . . . . . . . . . . Combat Hostiles . | . . . . . . . . . . Follow-up Attacks . | . . . . . . . . . . Damage Inflicted . | . . . . . . . . . . Guns . | . . . . . . . . . . Cannons . | . . . . . . . . . . Explosions . | . . . . . . . . . . Melee . | . . . . . . . . . . Ramming . | . . . . . . . . . . Kinetic . | . . . . . . . . . . Thermal . | . . . . . . . . . . Explosive . | . . . . . . . . . . Electromagnetic . | . . . . . . . . . . Impact . | . . . . . . . . . . Slashing . | . . . . . . . . . . Piercing . | . . . . . . . . . . Highest Corruption 14 | . . . . . . . . . 14 Average Corruption 13 | . . . . . . . . . 13 Corruption Purged . | . . . . . . . . . . Corruption Blocked . | . . . . . . . . . . Effects 8 | . . . . . . . . . 8 Message Errors 1 | . . . . . . . . . 1 Matter Fused 3 | . . . . . . . . . 3 Heat Flow Errors 1 | . . . . . . . . . 1 Data Loss (minor) 2 | . . . . . . . . . 2 Misdirections 1 | . . . . . . . . . 1 Overload Shots . | . . . . . . . . . . Overflow Damage . | . . . . . . . . . . Projectiles . | . . . . . . . . . . Explosions . | . . . . . . . . . . Melee . | . . . . . . . . . . Knockbacks . | . . . . . . . . . . Impact . | . . . . . . . . . . Kinetic . | . . . . . . . . . . Secondary . | . . . . . . . . . . Self-Inflicted Damage . | . . . . . . . . . . Shots . | . . . . . . . . . . Rammed 1 | . . . . . . . . . 1 Targets Rammed 1 | . . . . . . . . . 1 Kicked . | . . . . . . . . . . Crushed . | . . . . . . . . . . Highest Temperature 260 | . . . . . . . . . 260 Average Temperature 145 | . . . . . . . . . 145 Received Heat Transfer 105 | . 6 . . . . . . . 99 Siege Activations . | . . . . . . . . . . Martial Activations . | . . . . . . . . . . Shielding Activations . | . . . . . . . . . . Robots Disrupted . | . . . . . . . . . . Combat Hostiles . | . . . . . . . . . . Robots Corrupted . | . . . . . . . . . . Combat Hostiles . | . . . . . . . . . . Parts Fried . | . . . . . . . . . . Impact Corruptions . | . . . . . . . . . . Robots Melted . | . . . . . . . . . . Combat Hostiles . | . . . . . . . . . . Parts Melted . | . . . . . . . . . . Heat Transferred . | . . . . . . . . . . Parts Sabotaged . | . . . . . . . . . . Parts Stolen . | . . . . . . . . . . Parts Stripped . | . . . . . . . . . . Power Chain Reactions . | . . . . . . . . . . Alert | -11 -10 -10 -9 -9 -9 -8 -8 -7 -7 ------- Run | Yrd Mat Min Mat Min Exi Min Mat Fac Gar Maximum Alert Level . | . . . . . . . . . . Low Security (%) 100 | 100 100 100 100 100 . 100 100 100 100 Level 1 . | . . . . . . . . . . Level 2 . | . . . . . . . . . . Level 3 . | . . . . . . . . . . Level 4 . | . . . . . . . . . . Level 5 . | . . . . . . . . . . High Security . | . . . . . . . . . . Max Security . | . . . . . . . . . . Peak Influence 157 | . . . 9 157 . . 50 22 85 Initial 22 | . . . . . . . . 22 . Average 14 | . . . . 34 . . 5 2 17 Influence Increases 478 | . . . 20 227 . . 100 31 100 Destroy 0b10 Robot/C 80 | . . . . 80 . . . . . Destroy 0b10 Robot/NC 5 | . . . 5 . . . . . . Destroy Leader 10 | . . . . 10 . . . . . Allied During Kill 77 | . . . . 77 . . . . . Successful Hack 33 | . . . 15 . . . . 18 . Anti-Garrison Action 50 | . . . . . . . . . 50 Destroy Structure 43 | . . . . . . . 10 13 20 Lose Combat Pursuer 180 | . . . . 60 . . 90 . 30 Influence Decreases 392 | . . . 20 227 . . 50 81 14 Entered New Map 28 | . . . . . . . . 28 . Time Decay 239 | . . . 11 147 . . 28 53 . Lost Part 14 | . . . . . . . . . 14 Lost Ally 80 | . . . . 80 . . . . . Purge Threat 31 | . . . 9 . . . 22 . . Squads Dispatched 3 | . . 1 . . . . 1 1 . Investigation 1 | . . . . . . . 1 . . Extermination 1 | . . . . . . . . 1 . Reinforcement . | . . . . . . . . . . Assault 1 | . . 1 . . . . . . . Garrison . | . . . . . . . . . . Intercept . | . . . . . . . . . . Searches Triggered . | . . . . . . . . . . Construction Impeded . | . . . . . . . . . . Haulers Reinforced . | . . . . . . . . . . Active Scanning Responses . | . . . . . . . . . . Cargo Convoy Interrupts . | . . . . . . . . . . Stealth | -11 -10 -10 -9 -9 -9 -8 -8 -7 -7 --------- Run | Yrd Mat Min Mat Min Exi Min Mat Fac Gar Distress Signals 1 | . . . 1 . . . . . . Communications Jammed . | . . . . . . . . . . Distress Signals . | . . . . . . . . . . Times Spotted 31 | . 5 . 7 11 . . 2 . 6 Peak Tracking Total 5 | . 5 . 5 4 . . 4 . 5 Tactical Retreats 7 | . . . . 2 . . 3 . 2 Traps | -11 -10 -10 -9 -9 -9 -8 -8 -7 -7 ------- Run | Yrd Mat Min Mat Min Exi Min Mat Fac Gar Traps Triggered 3 | . . . . . . . 1 . 2 Indirectly . | . . . . . . . . . . Trap Hack Attempts . | . . . . . . . . . . Triggered . | . . . . . . . . . . Disarmed . | . . . . . . . . . . Reprogrammed . | . . . . . . . . . . Reused . | . . . . . . . . . . Traps Extracted . | . . . . . . . . . . Installed . | . . . . . . . . . . Triggered . | . . . . . . . . . . Machines | -11 -10 -10 -9 -9 -9 -8 -8 -7 -7 ---------- Run | Yrd Mat Min Mat Min Exi Min Mat Fac Gar Machines Disabled 1 | . . . . . . . . . 1 Max in Single Turn 1 | . . . . . . . . . 1 Garrison Relay 1 | . . . . . . . . . 1 Machines Repaired . | . . . . . . . . . . Machines Dismantled . | . . . . . . . . . . Machines Sabotaged . | . . . . . . . . . . Overloaded Fab Kills . | . . . . . . . . . . Hacking | -11 -10 -10 -9 -9 -9 -8 -8 -7 -7 --------- Run | Yrd Mat Min Mat Min Exi Min Mat Fac Gar Machines Accessed 16 | . 1 . 5 1 1 . 2 6 . Terminals 12 | . 1 . 5 . . . 2 4 . Fabricators 1 | . . . . . . . . 1 . Repair Stations . | . . . . . . . . . . Recycling Units . | . . . . . . . . . . Scanalyzers . | . . . . . . . . . . Garrison Access 1 | . . . . . . . . 1 . Total Hacks 34 | . 2 . 13 1 1 . 6 11 . Successful 12 | . . . 3 1 1 . 3 4 . Failed 22 | . 2 . 10 . . . 3 7 . Catastrophic 3 | . . . 1 . . . . 2 . Database Lockouts . | . . . . . . . . . . Manual 19 | . . . 9 . 1 . 6 3 . Terminals 27 | . 2 . 13 . . . 6 6 . Fabricators 2 | . . . . . . . . 2 . Repair Stations . | . . . . . . . . . . Recycling Units . | . . . . . . . . . . Scanalyzers . | . . . . . . . . . . Garrison Access 3 | . . . . . . . . 3 . Terminal Hacks 10 | . . . 3 1 1 . 3 2 . Record 1 | . . . . . . . . 1 . Open Door 1 | . . . . 1 . . . . . Open DSF 1 | . . . . . . . . 1 . Branch Access Points 1 | . . . 1 . . . . . . Terminal Index 1 | . . . . . . . 1 . . Unreport Threat 2 | . . . 1 . . . 1 . . Recall Investigation 1 | . . . . . . . 1 . . Recall Assault 1 | . . . 1 . . . . . . Proto ID Catalog 1 | . . . . . 1 . . . . Fabricator Hacks 1 | . . . . . . . . 1 . Build 1 | . . . . . . . . 1 . Repair Station Hacks . | . . . . . . . . . . Recycling Unit Hacks . | . . . . . . . . . . Scanalyzer . | . . . . . . . . . . Garrison Access Hacks 1 | . . . . . . . . 1 . Unlock Access 1 | . . . . . . . . 1 . Unauthorized Hacks . | . . . . . . . . . . Terminals . | . . . . . . . . . . Fabricators . | . . . . . . . . . . Repair Stations . | . . . . . . . . . . Recycling Units . | . . . . . . . . . . Scanalyzers . | . . . . . . . . . . Garrison Access . | . . . . . . . . . . Data Cores Recovered 1 | . . . 1 . . . . . . Used . | . . . . . . . . . . Hacking Detections 12 | . 1 . 4 . . . 2 5 . Full Trace Events . | . . . . . . . . . . Feedback Events . | . . . . . . . . . . Feedback Blocked . | . . . . . . . . . . Robot Schematics Acquired . | . . . . . . . . . . Robots Built 3 | . . . . . . . . 3 . Authchips . | . . . . . . . . . . Time 58 | . . . . . . . . 58 . Total Robot Build Rating 9 | . . . . . . . . 9 . Part Schematics Acquired . | . . . . . . . . . . Parts Built . | . . . . . . . . . . Authchips . | . . . . . . . . . . Time . | . . . . . . . . . . Total Part Build Rating . | . . . . . . . . . . Part Studies Acquired . | . . . . . . . . . . Parts Repaired . | . . . . . . . . . . Time . | . . . . . . . . . . Parts Recycled . | . . . . . . . . . . Recycled Matter . | . . . . . . . . . . Retrieved Matter . | . . . . . . . . . . Retrieved Components . | . . . . . . . . . . Parts Scanalyzed . | . . . . . . . . . . Part Schematics Acquired . | . . . . . . . . . . Parts Damaged . | . . . . . . . . . . Bothacking | -11 -10 -10 -9 -9 -9 -8 -8 -7 -7 ------------ Run | Yrd Mat Min Mat Min Exi Min Mat Fac Gar Used RIF Installer . | . . . . . . . . . . Robots Hacked . | . . . . . . . . . . Non-combat . | . . . . . . . . . . Combat . | . . . . . . . . . . Robot Hacks Applied . | . . . . . . . . . . Relay Couplers Released 3 | . . . . . . . . . 3 Machine Destruction 3 | . . . . . . . . . 3 Fabnet Peak Effective % . | . . . . . . . . . . Robots Rewired . | . . . . . . . . . . Allies Hacked . | . . . . . . . . . . Hacks Repelled . | . . . . . . . . . . Allies | -11 -10 -10 -9 -9 -9 -8 -8 -7 -7 -------- Run | Yrd Mat Min Mat Min Exi Min Mat Fac Gar Total Allies 4 | . . 1 . . . . . 3 . Largest Group 3 | . . 1 1 1 . . . 3 . Highest-Rated Group 75 | . . 31 31 31 . . . 75 . Highest-Rated Ally 31 | . . 31 31 31 . . . 25 . Total Orders 1 | . . . . . . . . 1 . STAY 1 | . . . . . . . . 1 . Ally Attacks 17 | . . . 9 8 . . . . . Total Damage 170 | . . . 87 83 . . . . . Kills 5 | . . . 1 4 . . . . . Allies Corrupted . | . . . . . . . . . . Allies Melted . | . . . . . . . . . . Intel | -11 -10 -10 -9 -9 -9 -8 -8 -7 -7 ------- Run | Yrd Mat Min Mat Min Exi Min Mat Fac Gar Active Infowar (turns) 25 | . . . . . . . 25 . . Traps 25 | . . . . . . . 25 . . Robot Analysis Total . | . . . . . . . . . . Derelict Logs Recovered 1 | . . . . 1 . . . . . Drone Launches 16 | . . . . 16 . . . . . Drone Recoveries . | . . . . . . . . . . Exploration | -11 -10 -10 -9 -9 -9 -8 -8 -7 -7 ------------- Run | Yrd Mat Min Mat Min Exi Min Mat Fac Gar Turns Passed 2343 | 22 70 27 192 600 218 15 314 490 395 Spaces Moved 2825 | 44 124 50 288 524 412 30 346 628 379 Core 2825 | 44 124 50 288 524 412 30 346 628 379 Treads . | . . . . . . . . . . Legs . | . . . . . . . . . . Wheels . | . . . . . . . . . . Hover . | . . . . . . . . . . Flight . | . . . . . . . . . . Fastest Speed 50 | 50 50 50 50 50 50 50 50 50 50 Average Speed 61 | 50 50 50 50 110 51 50 50 50 50 Slowest Speed 200 | 50 50 50 50 200 200 50 50 50 50 Overloaded Moves . | . . . . . . . . . . Propulsion Burnouts . | . . . . . . . . . . Robots Hopped . | . . . . . . . . . . Potential Cave-ins 49 | . . . . . . . 8 . 41 Cave-ins Triggered 6 | . . . . . . . . . 6 Exploration Rate (%) 31 | 4 43 20 24 58 87 18 19 11 32 Regions Visited 9 Branch Regions 4 Pre-discovered Areas . | . . . . . . . . . . Known Exits Taken 8 | . 1 1 1 1 1 1 1 1 . Unknown Exits Taken 1 | 1 . . . . . . . . . Scrap Searched . | . . . . . . . . . . Spaces Dug 82 | . . . . . . . 18 13 51 Terrain Destroyed 82 | . . . . . . . 18 13 51 Melee 82 | . . . . . . . 18 13 51 Projectile . | . . . . . . . . . . AOE . | . . . . . . . . . . Terrain Rammed . | . . . . . . . . . . Walls Destroyed . | . . . . . . . . . . Machines Disabled . | . . . . . . . . . . Actions | -11 -10 -10 -9 -9 -9 -8 -8 -7 -7 --------- Run | Yrd Mat Min Mat Min Exi Min Mat Fac Gar Total 3244 | 43 130 51 335 545 418 29 443 777 473 Wait 237 | . . . 42 10 . . 64 112 9 Move 2812 | 43 123 49 287 523 411 29 345 627 375 Hop . | . . . . . . . . . . Pick Up 12 | . 5 1 1 . . . 1 3 1 Fast Attach 25 | . 1 . 2 5 1 . 3 8 5 Attach 6 | . 1 . . . 2 . 1 . 2 Detach 7 | . . . 1 1 1 . 2 2 . Swap 1 | . . . . . . . . 1 . Drop 20 | . . 1 2 3 3 . 2 9 . Fire . | . . . . . . . . . . Melee 95 | . . . . . . . 25 15 55 Ram 1 | . . . . . . . . . 1 Kick . | . . . . . . . . . . Crush . | . . . . . . . . . . Escape Stasis 25 | . . . . . . . . . 25 Rewire 3 | . . . . 3 . . . . . Trap . | . . . . . . . . . . Miscellaneous . | . . . . . . . . . . Route ------- -11/Scrapyard -10/Materials -10/Mines -9/Materials -9/Mines (discovered 2 exits: *Mat / *Exi) -9/Exiles -8/Mines -8/Materials -7/Factory (discovered 2 exits: Gar / DSF) -7/Garrison (discovered 1 exit: [*Fac]) History --------- Turn | Location | Event 10 | -11/Scrapyard | Discovered new exit (range 16) 23 | -11/Scrapyard | Entered Materials 90 | -10/Materials | Discovered new exit (range 6) 92 | -10/Materials | Identified exit to Mines 93 | -10/Materials | Entered Mines 108 | -10/Mines | Discovered new exit (range 15) 110 | -10/Mines | Met a Derelict testing a Signal Generator 116 | -10/Mines | Found Signal Generator 119 | -10/Mines | Identified exit to Materials 120 | -10/Mines | Entered Materials 120 | -9/Materials | Accompanied by 1 ally 120 | -9/Materials | Evolved 2 slots: Utility x2 174 | -9/Materials | Identified exit to Mines 312 | -9/Materials | Entered Mines 312 | -9/Mines | Accompanied by 1 ally 316 | -9/Mines | Met a Derelict bent on vengeance 318 | -9/Mines | Build established: Mutant 321 | -9/Mines | Found the Drone Emporium 324 | -9/Mines | Found Prototype Device 324 | -9/Mines | Identified Bomb Drone Bay 663 | -9/Mines | Discovered new exit (range 6) 741 | -9/Mines | Learned Materials garrison access intel 783 | -9/Mines | A weapon hastily lodged in a ceiling crevice suddenly fell to the ground 869 | -9/Mines | Deemed a non-threat by the Exiles lab entrance 869 | -9/Mines | Discovered new exit (range 5) 875 | -9/Mines | Identified exit to Exiles 912 | -9/Mines | Entered Exiles 912 | -9/Exiles | Accompanied by 12 allies 933 | -9/Exiles | Met 8R-AWN 941 | -9/Exiles | Met EX-HEX 961 | -9/Exiles | Met EX-DEC 978 | -9/Exiles | Visited The Gauntlet 1035 | -9/Exiles | Met EX-BIN 1044 | -9/Exiles | Aligned with FarCom system 1044 | -9/Exiles | Given EX-Vault access code 1056 | -9/Exiles | Opened EX-Vault 1061 | -9/Exiles | Found Firepult 1073 | -9/Exiles | Warned to stay clear of 0b10 Research branches 1125 | -9/Exiles | Discovered new exit (range 10) 1129 | -9/Exiles | Identified exit to Mines 1130 | -9/Exiles | Entered Mines 1140 | -8/Mines | Discovered new exit (range 13) 1145 | -8/Mines | Identified exit to Materials 1145 | -8/Mines | Entered Materials 1145 | -8/Materials | Evolved 2 slots: Utility x2 1146 | -8/Materials | Loaded intel: 1 garrison access location 1426 | -8/Materials | Discovered new exit (range 16) 1443 | -8/Materials | Identified exit to Factory 1459 | -8/Materials | Entered Factory 1459 | -7/Factory | Evolved 2 slots: Utility x2 1539 | -7/Factory | Fabricated C-17 Slicer? 1694 | -7/Factory | Identified exit to DSF 1700 | -7/Factory | Build established: Hacker-Mutant 1941 | -7/Factory | Identified exit to Garrison 1949 | -7/Factory | Entered Garrison 1987 | -7/Garrison | Triggered checkpoint 2151 | -7/Garrison | Crushed by falling debris 2160 | -7/Garrison | Crushed by falling debris 2165 | -7/Garrison | Crushed by falling debris 2165 | -7/Garrison | System corruption reached 10% 2172 | -7/Garrison | Crushed by falling debris 2196 | -7/Garrison | Lost 3 parts (3u) 2198 | -7/Garrison | Crushed by falling debris 2209 | -7/Garrison | Crushed by falling debris 2274 | -7/Garrison | Discovered new exit (range 8) 2278 | -7/Garrison | Attempted to access garrison exit controls, blocked by remote lockdown 2304 | -7/Garrison | Garrison Relay disabled 2318 | -7/Garrison | Core integrity fell below 50% 2336 | -7/Garrison | Core integrity fell below 20% 2344 | -7/Garrison | Destroyed by L-41 Fighter with Axe Last Messages --------------- Acquired Relay Coupler [Hunter]. Relay Coupler [Hunter] fries itself. Acquired Relay Coupler [NC]. Relay Coupler [NC] fries itself. Acquired Relay Coupler [Specialist]. Relay Coupler [Specialist] fries itself. Critical hit (Burn: +37). Power Maul severed. System corrupted: Matter fused (-6). Power Maul severed. The unstable cave ceiling collapses. G-47 Trooper crushed by falling debris. Slammed into L-41 Fighter. Acquired Power Maul. Power Maul severed. Acquired Power Maul. The unstable cave ceiling collapses. G-47 Trooper crushed by falling debris. G-47 Trooper destroyed. Power Maul crushed. Map ----- +----------------------------------------------------+ | ????????????????# ## ## #?????????????????? | | ????????????????" "?????????????????? | | ????????????????" "?????????????????? | | ????????????????" "?????????????????? | | ????????????????" "?????????????????? | | ????????????????# ## ## #?????????????????? | | ??????########### ## ## #?????????????????? | | ??????# ?????????????????? | | ??????# ?????????????????? | | ??????# ######## #?????????????????? | | ??????# #??????######""""######?????????????????? | | ??????# #????????????g??g???????????????????????? | | ??????# #???????????????????????????????????????? | | ??????# ###?????????????????????????????????????? | | ??????# + ??????????????????????????????????????? | | ??????# #???????????????????????????????????????? | | ??????# #???????????????????????????????????????? | | ??????# #???????????????????????????????????????? | | ??????# #???????????????????????????????????????? | | ####### #????????????????????????Y??????????????? | | #???????????????????????????????????????? | | #???????????????????????????????????????? | | ##### ###?????????????????????##????????????????? | | ##??# #???????????????###???A A##???????????????? | | #"##?# #????????########l##A #????s??????????? | | ## ### #????????#"" "## @; "s??????????? | | ?## ## ########### ######A #????s??????????? | | ??## " ggg##????A A##???????????????? | | ???######### #########???????##????????????????? | | ???????????#?????????????????????????????????????? | | ?????????????????????????????????????????????????? | | ?????????????????????????????????????????????????? | | ?????????????????????????????????????????????????? | | ?????????????????????????????????????????????????? | | ?????????????????????????????????????????????????? | | ?????????????????????????????????????????????????? | | ?????????????????????????????????????????????????? | | ????????????????????????????????????Y????????????? | | ?????????????????????????????????????????????????? | | ?????????????????????????????????????????????????? | | ?????????????????????????????????????????????????? | | ?????????????????????????????????????????????????? | | ?????????????????????????????????????????????????? | | ?????????????????????????????????????????????????? | | ?????????????????????????????????????????????????? | | ?????????????????????????????????????????????????? | | ?????????????????????????????????????????????????? | | ?????????????????????????????????????????????????? | | ?????????????????????????????????????????????????? | | ?????????????????????????????????????????????????? | +----------------------------------------------------+ Best States ------------- Heat Dissipation 34 Energy Generation 5 Energy Capacity 100 Matter Stores 300 Matter Capacity 300 Sight Range 16 Terrain Scan Density 410 Evasion (%) 50 Offensive Hacking 20 Item Schematics ----------------- None Robot Schematics ------------------ None Fabricated ------------ C-17 Slicer | x3 | -7/Factory | Preloaded Repaired ---------- Nothing Studied --------- None Alien Tech Used ----------------- None Achievements -------------- Release The Drones! Challenges ------------ None Game ------ Seed ArcPrecisionShifter Manual? 0 Play Time 00:51:19 Cumulative 23.2 hours Start 2025.11.10 @ 14:56:51 End 2025.11.10 @ 15:54:18 Sessions 1 Manual Loads 0 Difficulty Rogue Special Mode None Game No. 23 Rogue 23 Adventurer 0 Explorer 0 Win Type - Total 1 Types 1/0/0/0/0/0/0/0/0/0 Lore% 15 Gallery% 23 Achievement% 24 Wizard Run 0 Options --------- Layout 0 ASCII 0 Keyboard 0 Movement Arrows Keybinds 0 Fullscreen 2 Font 18/SmallcapsGlow Map View 76x50 Zoom Use 0% Tactical HUD 0 Map Filters NONE Filters NONE Steam 1 RUN: a9fdabbe-af8d-4fe9-b8e6-d3b41ec1224a